bitfinex/quotes_SOLUSD_20250817
["timestamp","ask_amount","ask_price","bid_price","bid_amount"]
[1755434694966,0.06,192.63,192.62,80.08570357]
[1755434697464,0.77,192.63,192.62,43.18570357]
[1755434697647,0.77,192.63,192.62,15.10621557]
[1755434700270,0.06,192.63,192.62,15.10621557]
[1755434701573,0.77,192.63,192.62,15.10621557]
[1755434703275,0.06,192.63,192.62,15.10621557]
[1755434706364,3.50824719,192.63,192.62,15.10621557]
[1755434708249,3.50824719,192.63,192.62,95.80621557]
[1755434709274,0.06,192.63,192.62,96.50621557]
[1755434709574,0.06,192.63,192.62,100.01446357]
[1755434709778,0.06,192.63,192.62,126.53362045]
[1755434709991,0.06,192.63,192.62,126.01446357]
[1755434712486,0.06,192.63,192.62,126.04446357]
[1755434714062,0.77,192.63,192.62,125.34446357]
[1755434714376,0.77,192.63,192.62,95.83621557]
[1755434715492,0.06,192.63,192.62,95.83621557]
[1755434715790,0.06,192.63,192.62,158.71621557]
[1755434715982,0.06,192.63,192.62,125.28254557]
[1755434716163,0.75,192.63,192.62,135.50254557]
[1755434716484,0.75,192.63,192.62,132.05621557]
[1755434716663,0.75,192.63,192.62,99.72563757]
[1755434716864,0.06,192.63,192.62,99.72563757]
[1755434717568,0.75,192.63,192.62,99.72563757]
[1755434718362,0.06,192.63,192.62,99.72563757]
[1755434719201,0.06,192.63,192.62,135.92563757]
[1755434719771,0.75,192.63,192.62,135.92563757]
[1755434720095,0.75,192.63,192.62,99.72563757]
[1755434720294,0.75,192.63,192.62,135.92563757]
[1755434721873,0.06,192.63,192.62,99.72563757]
[1755434722075,0.06,192.63,192.62,135.92563757]
[1755434722465,0.75,192.63,192.62,135.92563757]
[1755434722669,0.75,192.63,192.62,99.72563757]
[1755434723911,0.75,192.63,192.62,95.83621557]
[1755434725215,4.19753849,192.63,192.62,95.83621557]
[1755434725387,4.19753849,192.63,192.62,97.91602857]
[1755434726598,0.06,192.63,192.62,97.91602857]
[1755434730415,4.20015851,192.63,192.62,17.21602857]
[1755434730621,8.033331,192.63,192.62,15.13621557]
[1755434731396,8.033331,192.63,192.62,14.41621557]
[1755434731921,8.033331,192.63,192.62,0.03]
[1755434732128,8.03340836,192.63,192.62,0.03]
[1755434732635,8.03288241,192.63,192.62,0.03]
[1755434732931,9.33199206,192.63,192.62,0.03]
[1755434735239,9.32957821,192.63,192.62,0.03]
[1755434738123,9.32907371,192.63,192.62,0.03]
[1755434738324,8.02997698,192.63,192.62,0.03]
[1755434741021,4.20015851,192.63,192.62,0.03]
[1755434741222,8.02873288,192.63,192.62,0.03]
[1755434741532,8.0284655,192.63,192.62,0.03]
[1755434743551,9.32756223,192.63,192.62,0.03]
[1755434744244,8.0284655,192.63,192.62,0.03]
[1755434746046,44.2284655,192.63,192.62,0.03]
[1755434749838,44.83761732,192.63,192.62,0.03]
[1755434750036,43.5384655,192.63,192.62,0.03]
[1755434750243,39.71015851,192.63,192.62,0.03]
[1755434750442,44.24700703,192.63,192.62,0.03]
[1755434750946,44.24684471,192.63,192.62,0.03]
[1755434751449,43.53684471,192.63,192.62,0.03]
[1755434751622,44.24684471,192.63,192.62,0.03]
[1755434753356,44.24645329,192.63,192.62,0.03]
[1755434759421,40.42015851,192.63,192.62,0.03]
[1755434759626,44.24912491,192.63,192.62,0.03]
[1755434761857,45.54822175,192.63,192.62,0.03]
[1755434765344,45.54822175,192.63,192.6,0.03]
[1755434765662,13.59721534,192.62,192.6,0.03]
[1755434765866,44.77822175,192.61,192.6,0.03]
[1755434766069,45.48822175,192.61,192.6,0.03]
[1755434767463,41.65925535,192.61,192.6,0.03]
[1755434767669,45.48998169,192.61,192.6,0.03]
[1755434770655,45.4909002,192.61,192.6,0.03]
[1755434772360,49.79989379,192.61,192.6,0.03]
[1755434774246,45.4909002,192.61,192.6,0.03]
[1755434775050,45.4909002,192.61,192.59,0.03]
[1755434775373,9.2809002,192.6,192.59,0.03]
[1755434776568,5.44937971,192.6,192.59,0.03]
[1755434776776,9.28505286,192.6,192.59,0.03]
[1755434777272,9.28495741,192.6,192.59,0.03]
[1755434780477,9.28495741,192.6,192.58,0.03]
[1755434780677,49.11789056,192.59,192.58,0.03]
[1755434780862,49.81789056,192.59,192.58,0.03]
[1755434782556,45.50495741,192.59,192.58,0.03]
[1755434782761,71.50495741,192.59,192.58,0.03]
[1755434784181,73.42181862,192.59,192.58,0.03]
[1755434785174,73.42181862,192.59,192.57,0.03]
[1755434785475,9.28495741,192.58,192.57,0.03]
[1755434785975,9.28144834,192.58,192.57,0.03]
[1755434789197,13.58964252,192.58,192.57,0.03]
[1755434790089,12.88964252,192.58,192.57,0.7]
[1755434790265,12.88964252,192.58,192.57,0.03]
[1755434790462,13.58964252,192.58,192.57,0.03]
[1755434790689,9.28144834,192.58,192.57,0.03]
[1755434791191,9.276793,192.58,192.57,0.03]
[1755434792268,13.58300016,192.58,192.57,0.03]
[1755434794875,13.57834768,192.58,192.57,0.03]
[1755434803985,12.27876113,192.58,192.57,0.03]
[1755434804206,9.27301444,192.58,192.56,0.03]
[1755434804385,49.09992934,192.57,192.56,0.03]
[1755434804592,49.76992934,192.57,192.56,0.03]
[1755434805905,42.01751127,192.57,192.56,0.03]
[1755434806210,49.76995111,192.57,192.56,0.03]
[1755434807987,49.09995111,192.57,192.56,0.03]
[1755434808606,44.79304009,192.57,192.56,0.03]
[1755434808801,49.10120637,192.57,192.56,0.03]
[1755434810015,49.1037107,192.57,192.56,0.03]
[1755434810504,8.57554442,192.57,192.56,0.03]
[1755434810708,8.57554442,192.57,192.56,0.74]
[1755434810709,49.105829,192.57,192.56,0.74]
[1755434811286,49.105829,192.57,192.56,0.03]
[1755434812109,49.775829,192.57,192.56,0.03]
[1755434813115,49.77707914,192.57,192.56,0.03]
[1755434814314,45.46679456,192.57,192.56,0.03]
[1755434814505,45.52679456,192.57,192.56,0.03]
[1755434815481,44.85679456,192.57,192.56,0.03]
[1755434816409,45.52924728,192.57,192.56,0.03]
[1755434819228,45.52924728,192.57,192.55,0.03]
[1755434819411,12.89530261,192.56,192.55,0.03]
[1755434819902,12.89530261,192.56,192.55,0.74]
[1755434820214,12.89530261,192.56,192.55,0.03]
[1755434821318,8.57924728,192.56,192.55,0.03]
[1755434821615,3.44552882,192.56,192.55,0.03]
[1755434821792,8.58242658,192.56,192.55,0.03]
[1755434822499,8.58219561,192.56,192.55,0.03]
[1755434824025,9.25219561,192.56,192.55,0.03]
[1755434824521,8.58219561,192.56,192.55,0.03]
[1755434825710,8.58219561,192.56,192.55,0.74]
[1755434825900,44.78219561,192.56,192.55,0.74]
[1755434826099,44.78219561,192.56,192.55,0.03]
[1755434826617,44.78219561,192.56,192.55,0.74]
[1755434828334,44.78219561,192.56,192.55,0.03]
[1755434828708,44.78219561,192.56,192.55,0.74]
[1755434830515,40.94513036,192.56,192.55,0.74]
[1755434830716,44.78785074,192.56,192.55,0.74]
[1755434831427,44.78785074,192.56,192.55,0.03]
[1755434832232,44.84785074,192.56,192.55,0.03]
[1755434832906,44.84785074,192.56,192.55,0.74]
[1755434833325,44.84785074,192.56,192.54,0.03]
[1755434833532,12.91141713,192.55,192.54,0.03]
[1755434833729,12.9118393,192.55,192.54,0.03]
[1755434835537,12.9118393,192.55,192.54,0.72]
[1755434836537,12.91377368,192.55,192.54,0.72]
[1755434837143,12.91377368,192.55,192.54,0.03]
[1755434838620,12.91377368,192.55,192.54,0.72]
[1755434838825,8.59020729,192.55,192.54,15.82621557]
[1755434839124,44.79020729,192.55,192.54,15.82621557]
[1755434839524,40.94511874,192.55,192.54,15.82621557]
[1755434839726,44.79214223,192.55,192.54,15.82621557]
[1755434840349,44.79211638,192.55,192.54,15.82621557]
[1755434846455,44.79211638,192.55,192.54,15.13621557]
[1755434847755,5.14658756,192.55,192.54,15.13621557]
[1755434847931,44.80735734,192.55,192.54,15.82621557]
[1755434848554,40.96027941,192.55,192.54,15.78974718]
[1755434848858,44.80543314,192.55,192.54,15.78974718]
[1755434849230,44.8051026,192.55,192.54,15.78974718]
[1755434850850,44.8051026,192.55,192.54,15.09974718]
[1755434851442,45.4651026,192.55,192.54,15.09974718]
[1755434851759,45.4651026,192.55,192.53,0.03]
[1755434851954,9.2651026,192.54,192.53,0.03]
[1755434857662,5.42036113,192.54,192.53,0.03]
[1755434857863,9.26498452,192.54,192.53,0.03]
[1755434858749,8.60498452,192.54,192.53,0.03]
[1755434860965,8.60498452,192.54,192.53,15.82621557]
[1755434861259,8.60498452,192.54,192.53,15.13621557]
[1755434863861,8.60672882,192.54,192.53,15.13621557]
[1755434864567,9.32672882,192.54,192.53,0.03]
[1755434866153,8.60672882,192.54,192.53,0.03]
[1755434866958,8.60970039,192.54,192.53,0.03]
[1755434867767,9.32970039,192.54,192.53,0.03]
[1755434869764,13.65566262,192.54,192.53,0.03]
[1755434875984,9.80632336,192.54,192.53,0.03]
[1755434876280,13.65840049,192.54,192.53,0.03]
[1755434879772,12.93840049,192.54,192.53,0.03]
[1755434879975,8.61243826,192.54,192.53,0.03]
[1755434880364,8.61243826,192.54,192.53,15.78621557]
[1755434880365,7.31279178,192.54,192.53,15.78621557]
[1755434882082,7.37279178,192.54,192.53,15.78621557]
[1755434883080,7.37279178,192.54,192.53,15.13621557]
[1755434883276,7.37279178,192.54,192.53,15.78621557]
[1755434884086,3.52076978,192.54,192.53,15.78621557]
[1755434884268,7.37377123,192.54,192.53,15.78621557]
[1755434885488,44.27377123,192.54,192.53,15.13621557]
[1755434886096,45.57330758,192.54,192.53,0.03]
[1755434886264,49.89926981,192.54,192.53,0.03]
[1755434889698,49.91770579,192.54,192.53,0.03]
[1755434892201,49.91770579,192.54,192.49,14.96645557]
[1755434892494,9.34150135,192.53,192.46,0.65]
[1755434892670,45.52150135,192.52,192.46,0.65]
[1755434892875,8.62150135,192.51,192.46,0.65]
[1755434893072,4.33620444,192.53,192.46,0.65]
[1755434893073,43.501965,192.5,192.46,0.65]
[1755434893389,43.50506949,192.49,192.46,0.65]
[1755434893590,7.32506949,192.48,192.46,0.65]
[1755434893894,3.47046595,192.47,192.46,0.65]
[1755434894094,3.47046595,192.47,192.46,15.75621557]
[1755434894398,3.47046595,192.47,192.46,15.10621557]
[1755434894989,7.32586117,192.47,192.46,15.10621557]
[1755434899905,7.32586117,192.47,192.46,15.13621557]
[1755434901804,8.03586117,192.47,192.46,15.13621557]
[1755434902512,8.03220901,192.47,192.46,15.13621557]
[1755434904091,7.32220901,192.47,192.46,15.13621557]
[1755434906113,8.03220901,192.47,192.46,15.13621557]
[1755434906415,8.03220901,192.47,192.46,0.03]
[1755434910208,44.23220901,192.47,192.46,0.03]
[1755434911506,44.22849771,192.47,192.46,0.03]
[1755434911917,44.22762746,192.47,192.46,0.03]
[1755434912924,43.51762746,192.47,192.46,0.03]
[1755434913110,44.22762746,192.47,192.46,0.03]
[1755434914732,8.02762746,192.47,192.46,0.03]
[1755434915024,44.22762746,192.47,192.46,0.03]
[1755434917403,44.22321987,192.47,192.46,0.03]
[1755434918204,43.51321987,192.47,192.46,0.03]
[1755434919428,44.22321987,192.47,192.46,0.03]
[1755434920219,40.38046595,192.47,192.46,0.03]
[1755434920539,44.22149734,192.47,192.46,0.03]
[1755434924228,44.22137606,192.47,192.46,0.03]
[1755434928325,45.52157198,192.47,192.46,0.03]
[1755434929606,44.22315611,192.47,192.46,0.03]
[1755434929805,49.85957759,192.47,192.46,0.03]
[1755434934340,49.83873459,192.47,192.46,0.03]
[1755434935637,45.99604443,192.47,192.46,0.03]
[1755434935824,49.84195767,192.47,192.46,0.03]
[1755434937233,45.51649801,192.47,192.44,0.03]
[1755434937445,13.61530168,192.46,192.44,0.03]
[1755434937618,44.80649801,192.45,192.44,0.03]
[1755434938018,45.48649801,192.45,192.44,0.03]
[1755434938540,45.48649801,192.45,192.44,15.84621557]
[1755434938541,7.30628097,192.45,192.44,15.84621557]
[1755434938740,7.30936602,192.45,192.44,15.84621557]
[1755434942724,0.06,192.49,192.45,15.10621557]
[1755434942929,7.31329319,192.48,192.46,0.71]
[1755434943129,3.46420572,192.47,192.46,15.81621557]
[1755434943755,0.06,192.49,192.46,15.81621557]
[1755434943936,3.84723804,192.48,192.46,15.10621557]
[1755434944124,0.06,192.49,192.48,15.10621557]
[1755434944327,3.90675158,192.49,192.44,0.03]
[1755434944640,3.84675158,192.48,192.44,0.03]
[1755434944946,0.06,192.49,192.44,0.03]
[1755434945143,0.06,192.49,192.46,15.10621557]
[1755434945446,0.06,192.49,192.48,15.10621557]
[1755434945649,3.90612986,192.49,192.48,15.10621557]
[1755434945852,3.90612986,192.49,192.48,0.71]
[1755434946052,7.36940476,192.49,192.48,0.71]
[1755434946352,3.90612986,192.49,192.48,0.71]
[1755434946555,7.36974884,192.49,192.48,0.71]
[1755434946737,7.36930285,192.49,192.48,0.71]
[1755434947161,7.36930285,192.49,192.47,15.10621557]
[1755434947454,3.84463361,192.48,192.47,0.71]
[1755434948326,3.84463361,192.48,192.44,15.13621557]
[1755434948528,0.06,192.49,192.46,15.10621557]
[1755434948825,3.84328128,192.48,192.46,15.10621557]
[1755434949025,3.46273531,192.47,192.46,0.71]
[1755434950553,40.32273531,192.47,192.44,0.03]
[1755434950755,7.98518518,192.46,192.44,0.03]
[1755434951053,3.46273531,192.45,192.44,0.03]
[1755434952626,3.46273531,192.45,192.44,0.74]
[1755434952851,36.18,192.47,192.45,15.10621557]
[1755434953041,3.46430255,192.46,192.45,15.10621557]
[1755434954047,7.31060615,192.46,192.45,15.10621557]
[1755434955662,7.3107303,192.46,192.45,15.10621557]
[1755434956057,3.46430255,192.46,192.45,0.71]
[1755434957263,3.46430255,192.46,192.44,0.03]
[1755434957444,36.24,192.48,192.44,0.03]
[1755434957749,7.31159292,192.47,192.44,0.74]
[1755434957951,3.46474411,192.46,192.44,0.74]
[1755434958239,36.95,192.48,192.44,0.74]
[1755434958434,8.02100929,192.47,192.44,0.03]
[1755434958635,3.46441038,192.46,192.44,0.03]
[1755434958835,36.24,192.48,192.45,0.71]
[1755434959061,7.3110137,192.47,192.45,0.71]
[1755434959260,3.46440905,192.46,192.45,0.71]
[1755434959762,3.46440905,192.46,192.45,15.81621557]
[1755434959941,0.06,192.48,192.46,15.10621557]
[1755434960144,0.06,192.48,192.46,15.81621557]
[1755434960342,0.06,192.48,192.47,0.71]
[1755434960543,3.52412122,192.48,192.46,15.81621557]
[1755434960837,0.06,192.48,192.46,15.81621557]
[1755434961061,0.06,192.48,192.46,15.10621557]
[1755434965442,0.06,192.48,192.46,95.80621557]
[1755434966263,8.01718433,192.47,192.46,95.80621557]
[1755434967372,3.46176331,192.47,192.46,95.80621557]
[1755434967673,3.46176331,192.47,192.46,96.51621557]
[1755434969949,3.46176331,192.47,192.46,95.80621557]
[1755434970353,7.30827836,192.47,192.46,95.80621557]
[1755434973876,3.46176331,192.47,192.46,95.80621557]
[1755434974171,7.30585193,192.47,192.46,95.80621557]
[1755434974647,3.46176331,192.47,192.46,95.80621557]
[1755434977476,3.46176331,192.47,192.46,96.51621557]
[1755434981457,3.46203335,192.47,192.46,96.51621557]
[1755434982181,0.06,192.48,192.46,132.69621557]
[1755434982361,0.06,192.48,192.46,135.44824857]
[1755434982555,0.06,192.48,192.47,15.81621557]
[1755434983263,0.06,192.48,192.47,96.51621557]
[1755434983478,0.06,192.48,192.47,98.59765157]
[1755434988176,0.06,192.48,192.47,99.11721306]
[1755435000274,0.06,192.48,192.47,98.40721306]
[1755435000478,0.76,192.48,192.47,98.40721306]
[1755435000677,0.76,192.48,192.47,134.56721306]
[1755435000878,0.76,192.48,192.47,134.04765157]
[1755435005384,0.76,192.48,192.47,17.18765157]
[1755435005595,0.76,192.48,192.47,15.10621557]
[1755435005777,4.21553746,192.48,192.47,15.10621557]
[1755435010082,4.21553746,192.48,192.45,0.03]
[1755435010292,4.15776983,192.47,192.45,0.03]
[1755435010607,0.7,192.47,192.45,0.03]
[1755435010790,0.7,192.46,192.45,0.03]
[1755435014200,4.15701115,192.46,192.45,0.03]
[1755435014510,7.99765256,192.46,192.45,0.03]
[1755435014807,7.99765256,192.46,192.44,0.03]
[1755435015015,7.95765256,192.45,192.43,0.03]
[1755435015196,7.29765256,192.44,192.43,0.03]
[1755435015388,7.95765256,192.44,192.43,0.03]
[1755435018698,7.95100742,192.44,192.43,0.03]
[1755435019116,7.95100071,192.44,192.43,0.03]
[1755435020289,4.49398956,192.44,192.43,0.03]
[1755435020692,7.95100071,192.44,192.43,0.03]
[1755435020901,4.49398956,192.44,192.43,0.03]
[1755435021101,0.66,192.44,192.43,0.03]
[1755435028729,36.88,192.44,192.43,0.03]
[1755435028907,40.33701115,192.44,192.43,0.03]
[1755435029401,36.88,192.44,192.43,0.03]
[1755435043323,40.32891614,192.44,192.43,0.03]
[1755435046543,39.66891614,192.44,192.43,0.03]
[1755435046839,40.36891614,192.44,192.43,0.03]
[1755435047033,44.20441694,192.44,192.43,0.03]
[1755435048942,43.50441694,192.44,192.43,0.03]
[1755435049141,7.28441694,192.44,192.43,0.75]
[1755435049344,43.48441694,192.44,192.43,0.75]
[1755435049722,43.48441694,192.44,192.43,0.03]
[1755435051123,7.28441694,192.44,192.43,0.03]
[1755435051326,3.44891614,192.44,192.43,0.75]
[1755435051533,39.64891614,192.44,192.43,0.75]
[1755435052226,39.64891614,192.44,192.43,15.85621557]
[1755435052633,43.49280786,192.44,192.43,15.85621557]
[1755435053745,7.29280786,192.44,192.43,15.85621557]
[1755435055231,7.29647511,192.44,192.43,15.85621557]
[1755435055637,3.44891614,192.44,192.43,15.85621557]
[1755435055855,7.29647511,192.44,192.43,15.85621557]
[1755435057155,13.62422407,192.44,192.43,0.03]
[1755435058323,9.29668239,192.44,192.42,0.03]
[1755435058529,49.86781197,192.43,192.42,0.03]
[1755435060055,49.88528241,192.43,192.42,0.03]
[1755435062165,49.18528241,192.43,192.42,0.03]
[1755435062460,49.88528241,192.43,192.42,0.03]
[1755435063564,49.8904233,192.43,192.42,0.03]
[1755435067160,49.9504233,192.43,192.42,0.03]
[1755435071849,13.0104233,192.43,192.42,0.75]
[1755435072156,7.37804309,192.43,192.42,15.85621557]
[1755435072362,3.52556274,192.43,192.42,15.85621557]
[1755435072562,7.37367625,192.43,192.42,15.85621557]
[1755435073052,3.52556274,192.43,192.42,15.85621557]
[1755435073368,7.37356126,192.43,192.42,15.85621557]
[1755435075468,7.3737952,192.43,192.42,15.85621557]
[1755435080071,7.37138686,192.43,192.42,15.85621557]
[1755435080678,8.04138686,192.43,192.42,15.13621557]
[1755435081376,7.37138686,192.43,192.42,15.13621557]
[1755435081675,8.67114495,192.43,192.42,15.13621557]
[1755435082475,9.34114495,192.43,192.42,0.03]
[1755435090565,8.04077349,192.43,192.42,0.03]
[1755435090760,8.67350164,192.43,192.42,0.03]
[1755435091172,9.34350164,192.43,192.42,0.03]
[1755435092280,9.34350164,192.43,192.42,0.73]
[1755435092281,8.67350164,192.43,192.42,0.73]
[1755435092474,8.67350164,192.43,192.42,0.03]
[1755435092664,9.34350164,192.43,192.42,0.03]
[1755435094895,9.34507765,192.43,192.42,0.03]
[1755435095384,8.67507765,192.43,192.42,0.03]
[1755435095682,3.52473041,192.43,192.42,15.83621557]
[1755435101464,3.52473041,192.43,192.42,15.13621557]
[1755435101784,3.52473041,192.43,192.42,95.83621557]
[1755435102484,3.52473041,192.43,192.42,96.53621557]
[1755435103794,3.52473041,192.43,192.42,95.83621557]
[1755435104369,3.52473041,192.43,192.42,96.53621557]
[1755435105290,3.52473041,192.43,192.42,95.83621557]
[1755435107501,3.52473041,192.43,192.42,96.50621557]
[1755435107997,3.52473041,192.43,192.42,95.83621557]
[1755435108298,3.52734288,192.43,192.42,95.83621557]
[1755435109078,4.19734288,192.43,192.42,80.73]
[1755435109414,45.53176005,192.43,192.42,0.03]
[1755435112406,41.6776721,192.43,192.42,0.03]
[1755435112578,45.53184208,192.43,192.42,0.03]
[1755435112900,44.23145753,192.43,192.42,0.03]
[1755435113201,45.5318709,192.43,192.42,0.03]
[1755435113404,49.86604951,192.43,192.42,0.03]
[1755435115501,13.01604951,192.43,192.42,15.13621557]
[1755435115705,3.52734288,192.43,192.42,15.80621557]
[1755435119194,3.52734288,192.43,192.42,15.13621557]
[1755435120385,4.19734288,192.43,192.42,0.03]
[1755435120684,9.3522288,192.43,192.42,0.03]
[1755435121209,4.19734288,192.43,192.42,0.03]
[1755435121507,13.68712748,192.43,192.41,3.10510548]
[1755435121813,45.47182885,192.42,192.41,3.10510548]
[1755435123724,45.4718729,192.42,192.41,3.10510548]
[1755435126092,44.8018729,192.42,192.41,3.10510548]
[1755435126507,45.4718729,192.42,192.41,3.10510548]
[1755435129702,45.46989469,192.42,192.41,3.10510548]
[1755435130100,44.16946597,192.42,192.41,3.10510548]
[1755435130407,45.46982258,192.42,192.41,3.10510548]
[1755435137917,8.61982258,192.42,192.41,18.88132105]
[1755435138118,3.46734288,192.42,192.41,18.88132105]
[1755435138510,3.46734288,192.42,192.41,18.21132105]
[1755435138905,7.31987684,192.42,192.41,18.21132105]
[1755435140438,3.46734288,192.42,192.41,18.21132105]
[1755435141737,3.46734288,192.42,192.41,18.88132105]
[1755435143031,3.46734288,192.42,192.41,99.58132105]
[1755435150039,3.46734288,192.42,192.41,98.91132105]
[1755435151338,3.52734288,192.42,192.41,98.91132105]
[1755435157650,3.52734288,192.42,192.41,95.83621557]
[1755435159673,3.52734288,192.42,192.41,132.68621557]
[1755435164167,3.52734288,192.42,192.41,132.01621557]
[1755435164333,4.22734288,192.42,192.41,132.01621557]
[1755435164534,4.22734288,192.42,192.41,95.83621557]
[1755435170164,3.52734288,192.42,192.41,95.83621557]
[1755435171972,3.52734288,192.42,192.41,96.52621557]
[1755435173974,3.52734288,192.42,192.41,95.83621557]
[1755435178178,4.21734288,192.42,192.41,95.83621557]
[1755435182083,3.52734288,192.42,192.41,95.83621557]
[1755435184599,3.52734288,192.42,192.41,96.52621557]
[1755435186563,3.52734288,192.42,192.41,95.83621557]
[1755435199792,3.52734288,192.42,192.41,96.54621557]
[1755435200178,3.52734288,192.42,192.41,100.07355857]
[1755435201696,3.52734288,192.42,192.41,126.07355857]
[1755435203803,0.06,192.42,192.41,126.07355857]
[1755435207890,0.06,192.42,192.41,125.36355857]
[1755435209397,0.06,192.42,192.41,126.07355857]
[1755435210606,0.06,192.42,192.41,125.36355857]
[1755435226215,3.5305814,192.42,192.41,125.36355857]
[1755435228719,0.06,192.42,192.41,126.04355857]
[1755435229089,0.06,192.42,192.41,125.36355857]
[1755435229993,0.06,192.42,192.41,126.04355857]
[1755435230196,0.06,192.42,192.41,125.36355857]
[1755435239018,0.78,192.42,192.41,125.36355857]
[1755435239226,4.25218342,192.42,192.41,157.97621557]
[1755435240522,3.53218342,192.42,192.41,157.97621557]
[1755435240700,3.53218342,192.42,192.41,158.65621557]
[1755435240896,3.53218342,192.42,192.41,162.90839857]
[1755435241096,0.06,192.42,192.41,162.90839857]
[1755435241328,3.53136972,192.42,192.41,162.90839857]
[1755435241620,0.06,192.42,192.41,162.22839857]
[1755435243716,0.78,192.42,192.41,162.22839857]
[1755435243918,4.25174705,192.42,192.41,162.22839857]
[1755435244431,3.53174705,192.42,192.41,157.97621557]
[1755435245498,4.25174705,192.42,192.41,157.97621557]
[1755435247344,4.18031267,192.42,192.41,157.97621557]
[1755435247512,3.46031267,192.42,192.41,157.97621557]
[1755435250332,3.46031267,192.42,192.41,161.43652857]
[1755435252020,3.52031267,192.42,192.41,161.43652857]
[1755435252723,3.52031267,192.42,192.41,157.97621557]
[1755435255543,4.22031267,192.42,192.41,157.97621557]
[1755435257323,3.52031267,192.42,192.41,157.97621557]
[1755435261627,4.22031267,192.42,192.41,157.97621557]
[1755435269743,3.52031267,192.42,192.41,157.97621557]
[1755435275831,4.22031267,192.42,192.41,157.97621557]
[1755435276451,3.52031267,192.42,192.41,157.97621557]
[1755435280757,4.22031267,192.42,192.41,157.97621557]
[1755435282552,4.22031267,192.42,192.41,80.73]
[1755435282744,9.38107062,192.42,192.41,80.73]
[1755435282943,9.38107062,192.42,192.41,0.03]
[1755435283143,9.38084103,192.42,192.41,0.03]
[1755435283764,13.71602359,192.42,192.41,0.03]
[1755435284841,9.38084103,192.42,192.4,0.53]
[1755435285164,13.61961805,192.41,192.4,0.53]
[1755435286251,9.28084103,192.41,192.4,0.53]
[1755435289675,9.28107467,192.41,192.4,0.53]
[1755435291745,7.98052102,192.41,192.4,0.53]
[1755435291950,9.26929538,192.41,192.4,0.53]
[1755435292352,7.9686462,192.41,192.4,0.53]
[1755435292863,7.3086462,192.41,192.4,0.53]
[1755435293064,3.46031267,192.41,192.4,15.63621557]
[1755435293563,4.12031267,192.41,192.4,15.63621557]
[1755435301778,3.46031267,192.41,192.4,15.63621557]
[1755435302271,3.46031267,192.41,192.4,97.00621557]
[1755435302462,0.06,192.42,192.41,15.10621557]
[1755435302662,0.06,192.42,192.41,96.47621557]
[1755435305063,0.06,192.42,192.41,132.59621557]
[1755435308874,0.06,192.42,192.41,134.67786857]
[1755435311175,0.06,192.42,192.41,134.00786857]
[1755435311378,0.06,192.42,192.41,131.92621557]
[1755435311885,0.06,192.42,192.41,132.59621557]
[1755435312204,0.06,192.42,192.41,134.67797657]
[1755435314483,0.06,192.42,192.41,98.55797657]
[1755435314692,0.06,192.42,192.41,135.17770007]
[1755435314887,0.06,192.42,192.41,134.65797657]
[1755435316064,0.06,192.42,192.41,132.57621557]
[1755435318189,0.06,192.42,192.41,134.65786757]
[1755435320285,0.06,192.42,192.41,132.57621557]
[1755435321072,0.06,192.42,192.41,131.90621557]
[1755435323294,0.06,192.42,192.41,132.61621557]
[1755435324479,0.06,192.42,192.41,134.69786857]
[1755435324793,0.06,192.42,192.41,159.98786857]
[1755435324996,0.06,192.42,192.41,160.69786857]
[1755435326983,0.06,192.42,192.41,158.61621557]
[1755435327311,0.06,192.42,192.41,132.61621557]
[1755435327676,0.06,192.42,192.41,134.69786757]
[1755435329401,0.06,192.42,192.41,133.98786757]
[1755435330575,0.76,192.42,192.41,133.98786757]
[1755435330975,0.76,192.42,192.41,131.90621557]
[1755435335083,0.06,192.42,192.41,131.90621557]
[1755435336791,0.76,192.42,192.41,131.93621557]
[1755435337799,0.06,192.42,192.41,131.93621557]
[1755435340232,0.06,192.42,192.41,132.64621557]
[1755435342314,0.06,192.42,192.41,131.93621557]